bitfinex-derivatives/quotes_SOLF0:USTF0_20240815
["timestamp","ask_amount","ask_price","bid_price","bid_amount"]
[1723686311843,0.05151642,144.6,144.59,9.28]
[1723686312233,0.05151642,144.6,144.59,12.7371]
[1723686315444,0.05151642,144.6,144.59,3.4571]
[1723686325757,0.05151642,144.6,144.57,0.05146681]
[1723686325965,9.33151642,144.6,144.57,0.05146681]
[1723686326357,12.78861642,144.6,144.57,3.50896681]
[1723686326567,3.50861642,144.6,144.57,3.50896681]
[1723686327166,3.50861642,144.6,144.58,3.4574]
[1723686329160,0.05151642,144.6,144.58,3.4574]
[1723686329358,0.05151642,144.6,144.59,3.4572]
[1723686329955,0.05151642,144.6,144.59,12.7372]
[1723686330361,3.4558,144.65,144.62,3.4562]
[1723686330558,3.48474559,144.68,144.64,9.28]
[1723686330765,4.36,144.69,144.64,9.28]
[1723686331460,7.8149,144.69,144.66,3.4554]
[1723686331662,13.64,144.69,144.63,9.28]
[1723686331866,23.28184384,144.68,144.65,0.04785411]
[1723686332069,3.4554,144.67,144.65,0.04785411]
[1723686332258,23.28184384,144.68,144.65,0.04785411]
[1723686332259,0.05184384,144.68,144.65,0.04785411]
[1723686333060,3.50694384,144.68,144.65,3.50345411]
[1723686334166,0.05184384,144.68,144.66,3.4554]
[1723686334470,0.05184384,144.68,144.65,0.04785411]
[1723686334865,0.05184384,144.68,144.66,3.4553]
[1723686336165,0.05184384,144.68,144.67,3.4552]
[1723686341463,4.36,144.73,144.69,3.4546]
[1723686341858,4.36,144.73,144.67,23.23]
[1723686342061,7.814,144.73,144.68,13.3080306]
[1723686342462,23.23,144.74,144.68,13.3080306]
[1723686342665,226.0,144.77,144.69,36.58514232]
[1723686342666,0.04871189,144.72,144.69,36.58514232]
[1723686342964,0.04871189,144.72,144.69,23.27711172]
[1723686343167,0.04871189,144.72,144.7,3.4545]
[1723686343671,0.04871189,144.72,144.71,3.4543]
[1723686346564,0.04871189,144.72,144.7,3.4544]
[1723686347771,0.04871189,144.72,144.69,0.04711172]
[1723686348273,23.23,144.71,144.69,0.04711172]
[1723686348765,3.4545,144.7,144.69,0.04711172]
[1723686350367,3.4545,144.71,144.69,0.04711172]
[1723686350973,0.04871189,144.72,144.69,0.04711172]
[1723686351376,0.04871189,144.72,144.69,3.50171172]
[1723686351570,0.04871189,144.72,144.69,0.04711172]
[1723686351971,0.04871189,144.72,144.7,3.4543]
[1723686352777,0.04871189,144.72,144.71,3.4543]
[1723686358275,0.04871189,144.72,144.71,16.75869423]
[1723686358474,0.04871189,144.72,144.71,3.4543]
[1723686358678,0.04871189,144.72,144.71,16.75868856]
[1723686359570,4.36,144.77,144.71,13.30438856]
[1723686359769,4.34,144.8,144.73,23.23]
[1723686359970,3.49698548,144.79,144.73,23.23]
[1723686360175,3.4528,144.78,144.74,3.4534]
[1723686360378,4.34,144.8,144.74,3.4534]
[1723686360776,3.4529,144.77,144.76,0.04587422]
[1723686363181,0.05138579,144.78,144.76,0.04587422]
[1723686363373,23.28138579,144.78,144.76,0.04587422]
[1723686363775,3.4529,144.77,144.76,0.04587422]
[1723686364980,3.4536,144.74,144.71,3.4542]
[1723686365184,23.28138579,144.78,144.7,1.2275]
[1723686365185,23.23,144.76,144.7,1.2275]
[1723686365484,23.23,144.76,144.67,27.59]
[1723686365485,27.57,144.76,144.67,27.59]
[1723686365679,27.57,144.76,144.68,13.30617518]
[1723686365873,3.454,144.73,144.7,3.4544]
[1723686366073,30.97048054,144.76,144.67,23.23]
[1723686366286,30.97048054,144.76,144.7,0.05161753]
[1723686366287,0.04658405,144.73,144.7,0.05161753]
[1723686367084,3.50048405,144.73,144.7,3.50611753]
[1723686367783,3.4541,144.72,144.7,0.05161753]
[1723686368682,3.50048405,144.73,144.7,3.50611753]
[1723686369485,0.04658405,144.73,144.71,3.4542]
[1723686369685,0.04658405,144.73,144.7,0.05161753]
[1723686370287,0.04658405,144.73,144.71,3.4541]
[1723686371184,0.04658405,144.73,144.72,3.454]
[1723686371585,0.04658405,144.73,144.7,0.05161753]
[1723686372793,0.04658405,144.73,144.71,3.4542]
[1723686374700,0.04658405,144.73,144.72,3.454]
[1723686375194,0.04658405,144.73,144.71,3.4542]
[1723686375897,0.04658405,144.73,144.71,12.7342]
[1723686376997,0.04658405,144.73,144.72,3.454]
[1723686377198,0.04658405,144.73,144.72,12.734]
[1723686377499,4.34,144.79,144.72,9.28]
[1723686377798,4.34,144.79,144.75,12.7332]
[1723686378287,3.4527,144.78,144.75,12.7332]
[1723686378489,3.50210534,144.78,144.76,0.0451115]
[1723686378890,0.04940534,144.78,144.76,0.0451115]
[1723686381789,23.26940534,144.78,144.69,23.22]
[1723686381997,3.4537,144.74,144.7,3.4544]
[1723686382889,3.4539,144.73,144.69,3.4547]
[1723686383097,3.50478672,144.73,144.71,0.05287929]
[1723686383397,0.05088672,144.73,144.71,0.05287929]
[1723686384391,3.50478672,144.73,144.71,0.05287929]
[1723686385900,0.05088672,144.73,144.71,0.05287929]
[1723686387690,0.05088672,144.73,144.71,3.50717929]
[1723686389102,0.05088672,144.73,144.72,3.454]
[1723686389603,0.05088672,144.73,144.72,16.75665581]
[1723686389805,0.05088672,144.73,144.72,4.6931]
[1723686390396,0.05088672,144.73,144.72,17.99498768]
[1723686390799,0.05088672,144.73,144.72,14.54098768]
[1723686391004,0.05088672,144.73,144.72,1.2391]
[1723686391202,0.05088672,144.73,144.72,14.54155132]
[1723686391398,0.05088672,144.73,144.72,1.2391]
[1723686391796,0.05088672,144.73,144.72,4.6931]
[1723686392001,0.05088672,144.73,144.72,17.99459768]
[1723686392401,3.4527,144.78,144.74,3.4534]
[1723686392594,3.4527,144.78,144.74,26.6734]
[1723686392900,4.34,144.79,144.74,23.22]
[1723686393206,4.34,144.82,144.75,23.22]
[1723686393711,0.04952216,144.8,144.77,3.50050934]
[1723686394607,3.50172216,144.8,144.77,0.04780934]
[1723686394797,0.04952216,144.8,144.77,0.04780934]
[1723686395200,0.04952216,144.8,144.77,3.50050934]
[1723686396000,0.04952216,144.8,144.77,26.72050934]
[1723686396605,0.04952216,144.8,144.78,3.4526]
[1723686399998,0.04952216,144.8,144.79,3.4524]
[1723686400809,0.04952216,144.8,144.78,3.4525]
[1723686402001,0.04952216,144.8,144.78,12.7425]
[1723686403305,0.04952216,144.8,144.79,26.03739868]
[1723686404507,0.04952216,144.8,144.79,12.7424]
[1723686404708,0.04952216,144.8,144.79,26.03634931]
[1723686404900,10.5819,144.91,144.83,9.29]
[1723686405101,3.4502,144.89,144.85,9.29]
[1723686405503,3.4502,144.89,144.85,12.7408]
[1723686405712,7.7898,144.9,144.87,9.29]
[1723686405907,4.34,144.9,144.87,12.7403]
[1723686406108,3.46708736,144.92,144.88,9.29]
[1723686406300,3.4497,144.91,144.88,9.29]
[1723686406503,0.0527283,144.9,144.88,9.29]
[1723686406707,0.0527283,144.9,144.89,9.29]
[1723686407104,0.0527283,144.9,144.88,9.29]
[1723686407301,0.0527283,144.9,144.81,4.34]
[1723686407500,0.0527283,144.9,144.87,9.29]
[1723686407709,0.0527283,144.9,144.87,12.7403]
[1723686407914,0.0527283,144.9,144.88,0.04986387]
[1723686408410,3.4496,144.91,144.88,0.04986387]
[1723686408614,3.4494,144.92,144.88,3.50006387]
[1723686408801,0.0465539,144.9,144.88,3.50006387]
[1723686409403,0.0465539,144.9,144.88,0.04986387]
[1723686410210,3.45,144.89,144.88,0.04986387]
[1723686418013,3.4963539,144.9,144.88,0.04986387]
[1723686418215,0.0465539,144.9,144.88,0.04986387]
[1723686418620,3.4965539,144.9,144.88,0.04986387]
[1723686419321,3.45,144.89,144.88,0.04986387]
[1723686420919,7.79,144.89,144.88,0.04986387]
[1723686422616,3.4511,144.85,144.81,23.19]
[1723686422818,3.4088327,144.86,144.8,1.3406]
[1723686423123,23.19,144.88,144.81,3.4518]
[1723686423315,4.34,144.89,144.81,23.19]
[1723686423713,4.34,144.89,144.82,3.4515]
[1723686423919,4.34,144.89,144.81,23.19]
[1723686424124,0.04432438,144.86,144.84,0.05101578]
[1723686424626,3.49522438,144.86,144.84,0.05101578]
[1723686426920,0.04432438,144.86,144.84,0.05101578]
[1723686427126,3.451,144.85,144.84,0.05101578]
[1723686427425,0.04432438,144.86,144.84,0.05101578]
[1723686428419,3.451,144.85,144.84,0.05101578]
[1723686429918,3.49512438,144.86,144.84,0.05101578]
[1723686430617,0.04432438,144.86,144.84,0.05101578]
[1723686430817,0.04432438,144.86,144.84,3.50221578]
[1723686431021,0.04432438,144.86,144.84,0.05101578]
[1723686431730,0.04432438,144.86,144.84,3.50211578]
[1723686432531,0.04432438,144.86,144.84,0.05101578]
[1723686433032,0.04432438,144.86,144.84,3.50201578]
[1723686433928,0.04432438,144.86,144.85,3.451]
[1723686434128,0.04432438,144.86,144.84,0.05101578]
[1723686435127,0.04432438,144.86,144.84,3.50211578]
[1723686435627,3.49502438,144.86,144.84,0.05101578]
[1723686436131,0.04432438,144.86,144.84,0.05101578]
[1723686437733,3.451,144.85,144.84,0.05101578]
[1723686437935,6.91909335,144.85,144.84,0.05101578]
[1723686438734,3.49512438,144.86,144.84,0.05101578]
[1723686439124,0.04432438,144.86,144.84,3.50211578]
[1723686440329,0.04432438,144.86,144.85,3.451]
[1723686441529,0.04432438,144.86,144.84,26.69211578]
[1723686442524,0.04432438,144.86,144.84,0.05101578]
[1723686443224,3.49512438,144.86,144.84,0.05101578]
[1723686445336,0.04432438,144.86,144.84,0.05101578]
[1723686445537,0.04432438,144.86,144.84,23.24101578]
[1723686445837,0.04432438,144.86,144.85,3.451]
[1723686447439,0.04432438,144.86,144.84,23.24101578]
[1723686447636,0.04432438,144.86,144.84,0.05101578]
[1723686447840,0.04432438,144.86,144.84,3.50211578]
[1723686448539,0.04432438,144.86,144.84,0.05101578]
[1723686449043,0.04432438,144.86,144.84,3.50211578]
[1723686450442,0.04432438,144.86,144.85,3.451]
[1723686451642,0.04432438,144.86,144.84,0.05101578]
[1723686452242,0.04432438,144.86,144.84,3.50211578]
[1723686452842,0.04432438,144.86,144.85,3.451]
[1723686456250,0.04432438,144.86,144.84,0.05101578]
[1723686456852,3.451,144.85,144.84,0.05101578]
[1723686457054,26.641,144.85,144.84,0.05101578]
[1723686457259,3.4518,144.82,144.8,13.29420256]
[1723686457552,23.19,144.83,144.75,27.53]
[1723686457858,3.4525,144.79,144.76,13.29609622]
[1723686458060,3.4525,144.79,144.73,23.19]
[1723686458351,3.4522,144.8,144.76,3.4529]
[1723686458554,3.4522,144.8,144.77,13.2986925]
[1723686458758,0.05052112,144.77,144.76,3.4529]
[1723686458949,0.05052112,144.77,144.76,16.75189894]
[1723686459150,3.4522,144.8,144.76,16.75189894]
[1723686459455,3.4522,144.8,144.77,13.29899894]
[1723686459656,0.0444578,144.78,144.76,3.4529]
[1723686459856,0.0444578,144.78,144.77,13.29890382]
[1723686460059,0.0444578,144.78,144.76,3.4529]
[1723686460250,0.0444578,144.78,144.77,13.29889695]
[1723686463355,0.0444578,144.78,144.77,13.29902461]
[1723686467060,3.4972578,144.78,144.77,13.29902603]
[1723686469163,0.0444578,144.78,144.77,13.29902603]
[1723686470464,0.0444578,144.78,144.75,26.68766635]
[1723686470865,3.4970578,144.78,144.76,13.30019719]
[1723686471065,3.4970578,144.78,144.75,26.68766635]
[1723686471259,3.4529,144.77,144.76,13.30019719]
[1723686471459,3.4529,144.77,144.75,0.04436635]
[1723686471669,3.4529,144.77,144.76,13.30057122]
[1723686472466,3.4529,144.77,144.75,0.04436635]
[1723686473161,0.0444578,144.78,144.75,0.04436635]
[1723686473864,0.0444578,144.78,144.76,13.30011301]
[1723686474061,0.0444578,144.78,144.75,0.04436635]
[1723686474466,3.4972578,144.78,144.76,13.29964797]
[1723686474664,3.4972578,144.78,144.75,3.49766635]
[1723686474863,3.4972578,144.78,144.76,13.29964799]
[1723686475066,3.4972578,144.78,144.75,3.49766635]
[1723686475254,0.0444578,144.78,144.76,13.29964799]
[1723686475461,0.0444578,144.78,144.75,3.49766635]
[1723686475663,0.0444578,144.78,144.76,13.29964799]
[1723686475964,3.4971578,144.78,144.75,3.49766635]
[1723686476167,3.4971578,144.78,144.76,13.299648]
[1723686476354,3.4971578,144.78,144.75,3.49766635]
[1723686476559,3.4971578,144.78,144.76,13.29964799]
[1723686476758,3.4971578,144.78,144.75,3.49766635]
[1723686476954,3.4971578,144.78,144.76,13.29964799]
[1723686477154,3.4971578,144.78,144.75,3.49766635]
[1723686477359,3.4971578,144.78,144.76,13.29918984]
[1723686477562,3.4971578,144.78,144.75,3.49766635]
[1723686477755,0.0444578,144.78,144.76,16.75218984]
[1723686477967,0.0444578,144.78,144.77,13.29870689]
[1723686478268,0.0444578,144.78,144.77,16.75160689]
[1723686480167,0.0444578,144.78,144.77,3.4529]
[1723686480563,0.0444578,144.78,144.75,23.23436635]
[1723686480564,0.0444578,144.78,144.75,0.04436635]
[1723686480763,0.0444578,144.78,144.76,13.29861174]
[1723686480960,0.0444578,144.78,144.75,0.04436635]
[1723686481161,0.0444578,144.78,144.76,13.2996053]
[1723686481366,0.0444578,144.78,144.75,0.04436635]
[1723686482166,3.4971578,144.78,144.75,0.04436635]
[1723686482765,3.4971578,144.78,144.75,3.49756635]
[1723686483272,3.4971578,144.78,144.75,0.04436635]
[1723686483568,3.4971578,144.78,144.75,3.49766635]
[1723686484969,0.0444578,144.78,144.76,36.48983601]
[1723686485170,0.0444578,144.78,144.77,13.29661621]
[1723686485371,0.0444578,144.78,144.77,16.74951621]
[1723686485760,0.0444578,144.78,144.77,13.29661621]
[1723686485965,0.0444578,144.78,144.75,0.04436635]
[1723686485966,3.4970578,144.78,144.75,0.04436635]
[1723686486165,3.4970578,144.78,144.76,13.30023319]
[1723686486166,0.0444578,144.78,144.76,13.30023319]
[1723686486366,0.0444578,144.78,144.75,0.04436635]
[1723686487074,3.453,144.77,144.75,0.04436635]
[1723686487369,0.0444578,144.78,144.75,0.04436635]
[1723686487671,3.4972578,144.78,144.75,0.04436635]
[1723686487871,0.0444578,144.78,144.75,0.04436635]
[1723686488772,3.4529,144.77,144.75,0.04436635]
[1723686489564,3.4971578,144.78,144.75,3.49766635]
[1723686491268,0.0444578,144.78,144.75,3.49766635]
[1723686491471,0.0444578,144.78,144.75,0.04436635]
[1723686491672,0.0444578,144.78,144.76,36.48968285]
[1723686491869,0.0444578,144.78,144.77,26.04023998]
[1723686492074,0.0444578,144.78,144.77,26.03918678]
[1723686492376,0.0444578,144.78,144.77,26.03902978]
[1723686493367,0.0444578,144.78,144.77,26.03811814]
[1723686493967,0.0444578,144.78,144.77,16.74811814]
[1723686494373,0.0444578,144.78,144.77,13.29521814]
[1723686495171,0.0444578,144.78,144.77,16.74811814]
[1723686495669,0.0444578,144.78,144.77,3.4529]
[1723686495875,0.0444578,144.78,144.77,16.74854937]
[1723686499080,0.0444578,144.78,144.77,13.29564937]
[1723686499379,0.0444578,144.78,144.75,0.04436635]
[1723686499684,0.0444578,144.78,144.76,13.29906483]
[1723686499884,0.0444578,144.78,144.75,0.04436635]
[1723686500076,0.0444578,144.78,144.76,13.29870985]
[1723686500277,0.0444578,144.78,144.75,3.49746635]
[1723686500472,0.0444578,144.78,144.76,13.29902694]
[1723686500681,3.4970578,144.78,144.77,13.29902694]
[1723686500877,0.0444578,144.78,144.75,0.04436635]
[1723686501182,3.4971578,144.78,144.76,13.29978486]
[1723686501376,3.4971578,144.78,144.75,0.04436635]
[1723686501576,3.4971578,144.78,144.76,13.29979174]
[1723686501779,3.4971578,144.78,144.75,3.49766635]
[1723686501979,3.4971578,144.78,144.76,13.29979171]
[1723686502181,3.4971578,144.78,144.75,3.49766635]
[1723686502382,3.4971578,144.78,144.76,13.29964128]
[1723686502583,3.4971578,144.78,144.75,3.49766635]
[1723686502886,3.4971578,144.78,144.76,13.29964128]
[1723686503082,3.4971578,144.78,144.75,3.49766635]
[1723686503287,3.4971578,144.78,144.76,13.29964128]
[1723686503482,0.0444578,144.78,144.76,3.4529]
[1723686503980,0.0444578,144.78,144.77,3.4529]
[1723686505777,0.0444578,144.78,144.77,26.6729]
[1723686505984,0.0444578,144.78,144.77,39.97161008]
[1723686507289,0.0444578,144.78,144.77,39.9691526]
[1723686509389,0.0444578,144.78,144.77,41.2406526]
[1723686510789,0.0444578,144.78,144.77,41.23988158]
[1723686512892,4.34,144.84,144.77,41.23988158]
[1723686512893,3.4515,144.83,144.8,3.4521]
[1723686513193,3.4515,144.83,144.77,24.4915]
[1723686513397,3.4517,144.82,144.79,3.4523]
[1723686513695,3.4517,144.82,144.8,13.29471073]
[1723686513900,3.4517,144.82,144.79,3.4523]
[1723686514092,3.4517,144.82,144.8,13.33893228]
[1723686514093,3.49761271,144.82,144.8,13.33893228]
[1723686514290,3.49761271,144.82,144.8,0.04406969]
[1723686515398,0.04591271,144.82,144.8,0.04406969]
[1723686515894,0.04591271,144.82,144.81,13.29459401]
[1723686517602,3.49761271,144.82,144.81,13.29459401]
[1723686517893,3.49761271,144.82,144.81,13.29486946]
[1723686518294,0.04591271,144.82,144.81,13.29486946]
[1723686521390,0.04591271,144.82,144.81,13.29428531]
[1723686523899,0.04591271,144.82,144.81,16.74618531]
[1723686524200,13.63,144.9,144.81,22.58428531]
[1723686524405,13.63,144.9,144.84,9.29]
[1723686524605,13.63,144.9,144.85,13.29428531]
[1723686524907,13.63,144.9,144.84,9.29]
[1723686525104,13.63,144.9,144.85,13.28853307]
[1723686525400,3.4508,144.86,144.84,9.29]
[1723686525710,3.4508,144.86,144.85,13.28852146]
[1723686528605,3.4508,144.86,144.85,13.28860864]
[1723686531205,3.451,144.85,144.84,0.0440683]
[1723686531410,3.451,144.85,144.84,13.33284784]
[1723686532607,3.4508,144.86,144.84,13.33284784]
[1723686532799,3.4508,144.86,144.84,0.0440683]
[1723686534098,3.451,144.85,144.84,0.0440683]
[1723686534307,9.34241609,144.88,144.84,13.33283265]
[1723686534501,9.34241609,144.88,144.84,0.0440683]
[1723686534907,3.4509,144.86,144.84,0.0440683]
[1723686536606,3.4506,144.87,144.84,0.0440683]
[1723686536814,9.34241609,144.88,144.84,0.0440683]
[1723686537004,9.34241609,144.88,144.85,13.28785189]
[1723686537202,9.34241609,144.88,144.84,0.0440683]
[1723686537708,3.4505,144.87,144.84,0.0440683]
[1723686537910,9.34241609,144.88,144.84,0.0440683]
[1723686538306,0.05241609,144.88,144.84,0.0440683]
[1723686538714,3.4505,144.87,144.84,3.4951683]
[1723686538913,0.05241609,144.88,144.84,9.3340683]
[1723686539919,0.05241609,144.88,144.85,13.2874967]
[1723686540115,0.05241609,144.88,144.84,9.3340683]
[1723686540311,9.34241609,144.88,144.85,13.28761108]
[1723686540514,9.29,144.86,144.84,0.0440683]
[1723686540712,9.29,144.86,144.76,9.29]
[1723686540713,9.29,144.85,144.76,9.29]
[1723686540915,7.84630778,144.86,144.78,9.29]
[1723686541220,7.84630778,144.86,144.81,9.29]
[1723686541420,3.4513,144.84,144.81,9.29]
[1723686542315,3.49921206,144.84,144.81,12.78728543]
[1723686542517,3.49921206,144.84,144.82,13.29330913]
[1723686543019,3.49921206,144.84,144.81,12.78728543]
[1723686543420,3.4514,144.83,144.81,9.33548543]
[1723686543621,3.4514,144.83,144.82,13.29147287]
[1723686543821,3.4514,144.83,144.81,0.04548543]
[1723686545921,0.04791206,144.84,144.81,0.04548543]
[1723686546125,9.29,144.83,144.81,0.04548543]
[1723686546424,3.4517,144.82,144.81,0.04548543]
[1723686548322,0.04791206,144.84,144.81,9.33548543]
[1723686548723,0.04791206,144.84,144.82,9.29]
[1723686549022,0.04791206,144.84,144.83,13.290762]
[1723686551322,3.49911206,144.84,144.83,13.290762]
[1723686551523,0.04791206,144.84,144.83,13.290762]
[1723686551830,3.49911206,144.84,144.82,9.29]
[1723686552125,3.49911206,144.84,144.83,13.28995536]
[1723686553727,0.04791206,144.84,144.83,22.57995536]
[1723686554823,0.04791206,144.84,144.83,26.03135536]
[1723686555121,4.34,144.91,144.83,22.57995536]
[1723686555317,4.34,144.93,144.89,9.29]
[1723686556423,0.05129915,144.92,144.9,0.05145914]
[1723686558725,9.29,144.91,144.9,0.05145914]
[1723686560916,0.05129915,144.92,144.9,0.05145914]
[1723686568927,0.05129915,144.92,144.9,9.34145914]
[1723686571134,0.05129915,144.92,144.9,0.05145914]
[1723686573737,0.05129915,144.92,144.9,9.34145914]
[1723686578433,0.05129915,144.92,144.91,9.29]
[1723686579136,0.05129915,144.92,144.91,14.0283]
[1723686581540,4.34,145.01,144.91,67.93549593]
[1723686581733,16.197,145.04,144.98,9.29]
[1723686581734,6.907,145.04,144.98,9.29]
[1723686581930,3.4475,145.0,144.98,9.29]
[1723686582331,11.247,145.04,144.98,9.29]
[1723686582535,3.4471,145.02,144.99,9.29]
[1723686582736,0.04357097,145.0,144.99,9.29]
[1723686583446,3.49097097,145.0,144.98,0.04485911]
[1723686585143,3.4476,144.99,144.98,0.04485911]
[1723686586548,3.49117097,145.0,144.98,0.04485911]
[1723686587947,0.04357097,145.0,144.98,9.33485911]
[1723686589044,0.04357097,145.0,144.98,0.04485911]
[1723686589544,3.49107097,145.0,144.98,0.04485911]
[1723686590451,0.04357097,145.0,144.98,0.04485911]
[1723686590744,0.04357097,145.0,144.99,9.29]
[1723686592148,0.04357097,145.0,144.99,12.7376]
[1723686592949,7.7865,145.04,144.99,9.29]
[1723686593147,7.7865,145.04,145.03,9.29]
[1723686593349,3.4465,145.04,145.03,9.29]
[1723686594848,0.04786237,145.05,145.03,9.29]
[1723686595049,0.04786237,145.05,145.04,9.29]
[1723686595447,6.907,145.08,145.04,9.29]
[1723686595755,6.907,145.08,145.06,9.29]
[1723686596347,6.907,145.1,145.06,9.29]
[1723686596548,6.907,145.1,145.07,9.29]
[1723686596760,4.34,145.13,145.09,9.29]
[1723686596957,10.34939212,145.12,145.09,9.29]
[1723686597357,10.34939212,145.12,145.07,9.34119673]
[1723686597358,10.37565547,145.12,145.07,9.34119673]
[1723686597560,19.66565547,145.12,145.07,0.05119673]
[1723686597860,10.37565547,145.12,145.07,0.05119673]
[1723686599358,33.53565547,145.12,145.07,0.05119673]
[1723686600453,23.16,145.1,145.07,0.05119673]
[1723686600656,30.067,145.1,145.07,0.05119673]
[1723686600856,4.34,145.09,145.07,0.05119673]
[1723686605169,14.71565547,145.12,145.07,0.05119673]
[1723686605873,14.71565547,145.12,145.07,23.21119673]
[1723686607672,14.71565547,145.12,145.07,0.05119673]
[1723686611371,11.27326335,145.12,145.07,0.05119673]
[1723686611975,14.7629817,145.12,145.07,0.05119673]
[1723686612671,11.27326335,145.12,145.07,26.65689673]
[1723686613371,11.27326335,145.12,145.07,23.21119673]
[1723686614277,11.27326335,145.12,145.07,0.05119673]
[1723686619881,11.27326335,145.12,145.08,9.26]
[1723686620368,6.907,145.1,145.07,0.05119673]
[1723686620572,3.4455,145.08,145.07,0.05119673]
[1723686620776,7.7855,145.08,145.07,0.05119673]
[1723686621371,4.34,145.08,145.07,0.05119673]
[1723686621974,7.7855,145.08,145.07,0.05119673]
[1723686624782,0.02626335,145.09,145.07,9.31119673]
[1723686624979,0.02626335,145.09,145.07,0.05119673]
[1723686625376,3.4455,145.08,145.07,0.05119673]
[1723686625778,3.4455,145.08,145.07,9.31119673]
[1723686626482,0.02626335,145.09,145.07,9.31119673]
[1723686626483,3.47166335,145.09,145.07,9.31119673]
[1723686626886,0.02626335,145.09,145.07,9.31119673]
[1723686627079,6.907,145.14,145.08,37.04]
[1723686627278,6.907,145.14,145.13,9.26]
[1723686628889,6.907,145.14,145.12,0.04725848]
[1723686629086,6.907,145.19,145.13,9.26]
[1723686629587,6.907,145.15,145.1,4.34]
[1723686630087,6.907,145.15,145.11,0.04358828]
[1723686630477,6.907,145.15,145.13,3.4442]
[1723686630882,6.907,145.15,145.14,23.13]
[1723686631679,6.907,145.19,145.14,23.13]
[1723686631985,6.907,145.19,145.17,23.13]
[1723686632178,10.3502,145.18,145.17,23.13]
[1723686632682,6.907,145.18,145.17,23.13]
[1723686635885,10.3501,145.18,145.17,23.13]
[1723686636691,6.907,145.18,145.17,23.13]
[1723686637193,6.907,145.19,145.17,26.5734]
[1723686637893,3.4425,145.21,145.18,26.5731]
[1723686638093,6.907,145.2,145.16,25.7076]
[1723686638288,6.907,145.21,145.18,3.443]
[1723686638494,6.907,145.21,145.2,23.13]
[1723686639087,10.3494,145.21,145.2,23.13]
[1723686639689,6.907,145.21,145.2,23.13]
[1723686640494,6.907,145.21,145.2,26.5726]
[1723686640789,6.907,145.23,145.2,26.5726]
[1723686640982,10.3489,145.23,145.2,23.13]
[1723686641191,6.907,145.23,145.2,23.17733105]
[1723686641490,3.4423,145.22,145.2,23.17733105]
[1723686641690,6.907,145.21,145.2,23.17733105]
[1723686642586,3.40038046,145.25,145.2,23.17733105]
[1723686642587,6.907,145.22,145.2,23.17733105]
[1723686643598,6.907,145.23,145.2,23.17733105]
[1723686643791,6.907,145.21,145.2,23.17733105]
[1723686644498,10.3494,145.21,145.2,23.17733105]
[1723686645090,6.907,145.21,145.2,23.17733105]
[1723686645997,6.907,145.21,145.2,0.04733105]
[1723686646198,10.3494,145.21,145.2,0.04733105]
[1723686646892,10.3494,145.21,145.16,23.13]
[1723686646893,3.4438,145.16,145.14,27.45]
[1723686647194,6.907,145.21,145.11,87.40329014]
[1723686647195,11.227,145.18,145.11,87.40329014]
[1723686647394,3.4445,145.12,145.11,23.13]
[1723686647599,3.4445,145.12,145.09,23.13]
[1723686647796,3.36653989,145.14,145.08,23.13]
[1723686648002,4.32,145.13,145.06,23.13]
[1723686648206,0.04536331,145.12,145.1,0.04958151]
[1723686648398,0.04536331,145.12,145.06,23.13]
[1723686648798,3.4454,145.09,145.06,23.13]
[1723686649002,6.95236331,145.12,145.06,23.13]
[1723686649296,30.037,145.11,145.02,23.13]
[1723686649809,30.037,145.1,145.02,23.13]
[1723686650007,0.05148167,145.08,145.05,0.05218367]
[1723686650212,3.53617599,145.08,145.05,0.05218367]
[1723686650406,3.446,145.07,145.05,0.05218367]
[1723686650606,0.05148167,145.08,145.05,0.05218367]
[1723686651012,7.81718167,145.08,145.05,0.05218367]
[1723686651517,3.4458,145.07,145.05,0.05218367]
[1723686652417,4.37148167,145.08,145.05,0.05218367]
[1723686653120,3.4458,145.07,145.05,0.05218367]
[1723686658618,3.446,145.06,145.05,0.05218367]
[1723686661619,10.3529,145.07,145.05,0.05218367]
[1723686662015,6.907,145.07,145.05,0.05218367]
[1723686662520,3.446,145.06,145.05,0.05218367]
[1723686664820,3.447,145.02,144.99,23.13]
[1723686665029,4.34,145.03,144.98,2.57]
[1723686665225,4.34,145.04,144.99,23.13]
[1723686665424,4.34,145.03,144.99,23.13]